bitfinex-derivatives/quotes_BNBF0:USTF0_20250326
["timestamp","ask_amount","ask_price","bid_price","bid_amount"]
[1743013439832,0.97651406,619.93,619.55,1.20576783]
[1743013440328,1.25661867,619.92,619.55,1.20576783]
[1743013440535,1.25656248,619.91,619.55,1.20576783]
[1743013440833,1.25657075,619.9,619.55,1.20576783]
[1743013441030,3.25451406,619.92,619.55,1.20576783]
[1743013441233,0.97651406,619.89,619.55,1.20576783]
[1743013441832,0.97651406,619.88,619.47,1.20576783]
[1743013442532,2.278,619.92,619.47,1.20576783]
[1743013442732,1.25667754,619.91,619.47,1.20576783]
[1743013442933,0.97652579,619.91,619.47,1.20576783]
[1743013443532,0.97652579,619.9,619.47,1.20576783]
[1743013444129,2.278,619.92,619.47,1.20576783]
[1743013444130,0.97652579,619.89,619.47,1.20576783]
[1743013444329,0.97652579,619.89,619.46,1.20576783]
[1743013444834,0.97652579,619.88,619.46,1.20576783]
[1743013445439,0.97652579,619.87,619.46,1.20576783]
[1743013445834,2.278,619.92,619.46,1.20576783]
[1743013446031,1.25674024,619.91,619.46,1.20576783]
[1743013446236,2.278,619.92,619.51,1.20576783]
[1743013446437,0.97653569,619.9,619.51,1.20576783]
[1743013446837,0.97653569,619.89,619.51,1.20576783]
[1743013447240,0.97653569,619.88,619.51,1.20576783]
[1743013448238,0.97653569,619.87,619.5,1.20576783]
[1743013448642,2.278,619.92,619.5,1.20576783]
[1743013449236,0.97650127,619.91,619.5,1.20576783]
[1743013449939,0.97650127,619.9,619.5,1.20576783]
[1743013450139,0.97650127,619.9,619.52,1.20576783]
[1743013450535,0.97650127,619.89,619.52,1.20576783]
[1743013451238,2.278,619.92,619.52,1.20576783]
[1743013452449,2.278,619.92,619.5,1.20576783]
[1743013454146,0.987,619.91,619.48,1.20576783]
[1743013456146,0.987,619.91,619.5,1.20576783]
[1743013458645,0.987,619.91,619.51,1.20576783]
[1743013459250,1.2,619.9,619.51,1.20576783]
[1743013460353,1.2,619.9,619.56,1.20576783]
[1743013462458,1.2,619.9,619.63,1.20576783]
[1743013463554,1.461,619.89,619.63,1.20576783]
[1743013464664,1.461,619.89,619.64,1.20576783]
[1743013466461,1.461,619.89,619.65,1.20576783]
[1743013468462,1.461,619.89,619.59,1.20576783]
[1743013470965,1.461,619.89,619.64,1.20576783]
[1743013473465,0.925,619.88,619.63,1.20576783]
[1743013475772,0.925,619.88,619.71,1.20576783]
[1743013478375,0.925,619.88,619.73,1.20576783]
[1743013482567,0.925,619.88,619.63,1.20576783]
[1743013484474,0.925,619.88,619.57,1.20576783]
[1743013485975,0.925,619.88,619.52,1.20576783]
[1743013487377,0.925,619.88,619.53,0.28070062]
[1743013487972,0.925,619.88,619.53,1.48646845]
[1743013489082,0.925,619.88,619.53,1.20576783]
[1743013490381,0.925,619.88,619.53,1.48646732]
[1743013491081,1.502,619.87,619.53,1.48646732]
[1743013491880,1.502,619.87,619.64,1.20576783]
[1743013493980,1.502,619.87,619.76,1.20576783]
[1743013500089,1.502,619.87,619.77,1.20576783]
[1743013503393,1.502,619.87,619.72,1.20576783]
[1743013504998,1.502,619.87,619.74,1.20576783]
[1743013506901,1.502,619.87,619.5,0.28067911]
[1743013507097,1.502,619.87,619.42,1.20576783]
[1743013507701,0.88,619.86,619.42,1.20576783]
[1743013508302,0.88,619.86,619.43,0.28071421]
[1743013508802,0.88,619.86,619.46,1.20576783]
[1743013514010,0.88,619.86,619.52,1.20576783]
[1743013516419,0.88,619.86,619.58,1.20576783]
[1743013518617,1.283,619.85,619.58,1.20576783]
[1743013520718,1.283,619.85,619.45,0.28071308]
[1743013520719,1.283,619.85,619.52,1.20576783]
[1743013523013,1.27328238,619.85,619.65,1.20576783]
[1743013523220,1.116,620.0,619.65,1.20576783]
[1743013523419,0.97561738,620.26,619.65,1.20576783]
[1743013523814,1.90961738,620.25,619.65,1.20576783]
[1743013524219,0.97561738,620.24,619.65,1.20576783]
[1743013524822,0.97561738,620.23,619.65,1.20576783]
[1743013525120,0.97561738,620.22,619.65,1.20576783]
[1743013525523,0.97561738,620.21,619.65,1.20576783]
[1743013525822,1.25556606,620.2,619.74,1.20576783]
[1743013526118,1.25556606,620.19,619.74,1.20576783]
[1743013526322,1.25556606,620.18,619.74,1.20576783]
[1743013526523,1.25556606,620.17,619.74,1.20576783]
[1743013526818,2.23220074,620.16,619.74,1.20576783]
[1743013527024,1.25658336,620.15,619.74,1.20576783]
[1743013527219,1.25658336,620.14,619.74,1.20576783]
[1743013527415,1.25658336,620.13,619.74,1.20576783]
[1743013527722,1.25658336,620.12,619.74,1.20576783]
[1743013527922,1.25677303,620.11,619.74,1.20576783]
[1743013528118,0.97561738,620.11,619.74,1.20576783]
[1743013528330,2.2326007,620.1,619.78,1.20576783]
[1743013528625,0.97561738,620.1,619.78,1.20576783]
[1743013529016,0.97561738,620.09,619.78,1.20576783]
[1743013529622,0.97561738,620.08,619.78,1.20576783]
[1743013530118,0.956,620.14,619.78,1.20576783]
[1743013530322,0.956,620.14,619.76,1.20576783]
[1743013530721,0.97697767,620.13,619.76,1.20576783]
[1743013531127,0.956,620.14,619.76,1.20576783]
[1743013531825,0.97704069,620.13,619.76,1.20576783]
[1743013532618,0.97704069,620.12,619.76,1.20576783]
[1743013532822,0.956,620.14,619.76,1.20576783]
[1743013533225,1.25742898,620.13,619.85,1.20576783]
[1743013533426,0.956,620.14,619.85,1.20576783]
[1743013533627,1.25741286,620.13,619.85,1.20576783]
[1743013533827,0.956,620.14,619.85,1.20576783]
[1743013534026,1.25740199,620.13,619.85,1.20576783]
[1743013534226,1.25738613,620.12,619.85,1.20576783]
[1743013534424,0.97698109,620.13,619.85,1.20576783]
[1743013535021,0.97698109,620.12,619.85,1.20576783]
[1743013535224,0.97698109,620.12,619.73,1.20576783]
[1743013535525,0.97698109,620.11,619.73,1.20576783]
[1743013536325,0.956,620.14,619.73,1.20576783]
[1743013536326,0.97698109,620.1,619.73,1.20576783]
[1743013536725,0.97698109,620.09,619.73,1.20576783]
[1743013536924,0.97698109,620.08,619.73,1.20576783]
[1743013537124,0.97698109,620.08,619.72,1.20576783]
[1743013537922,0.97698109,620.07,619.72,1.20576783]
[1743013538128,0.956,620.14,619.72,1.20576783]
[1743013538327,1.25743882,620.13,619.72,1.20576783]
[1743013538629,2.23443428,620.12,619.72,1.20576783]
[1743013538832,0.97699546,620.12,619.72,1.20576783]
[1743013539131,0.97699546,620.11,619.72,1.20576783]
[1743013539628,0.97699546,620.1,619.72,1.20576783]
[1743013539828,0.97699546,620.1,619.7,1.20576783]
[1743013540030,0.97699546,620.09,619.7,1.20576783]
[1743013540931,0.934,620.25,619.7,1.20576783]
[1743013541130,1.25746266,620.24,619.7,1.20576783]
[1743013541427,1.25746266,620.23,619.7,1.20576783]
[1743013541625,1.25746266,620.22,619.7,1.20576783]
[1743013541829,1.25746266,620.21,619.74,1.20576783]
[1743013542033,1.25746266,620.2,619.74,1.20576783]
[1743013542323,0.97706607,620.21,619.74,1.20576783]
[1743013542324,1.25746266,620.19,619.74,1.20576783]
[1743013542529,1.25746266,620.18,619.74,1.20576783]
[1743013542730,1.25746266,620.17,619.74,1.20576783]
[1743013542931,1.25746266,620.16,619.74,1.20576783]
[1743013543132,1.25746266,620.15,619.74,1.20576783]
[1743013543332,0.97706607,620.17,619.74,1.20576783]
[1743013543528,1.25761625,620.16,619.74,1.20576783]
[1743013543828,1.25761625,620.15,619.74,1.20576783]
[1743013544032,1.25761625,620.14,619.74,1.20576783]
[1743013544233,0.97717568,620.13,619.74,1.20576783]
[1743013544634,0.97717568,620.13,619.57,0.28063837]
[1743013544635,0.97717568,620.12,619.78,1.20576783]
[1743013545134,0.97717568,620.11,619.78,1.20576783]
[1743013545731,0.97717568,620.1,619.78,1.20576783]
[1743013546532,0.97717568,620.09,619.57,1.20576783]
[1743013546937,1.277,620.22,619.57,1.20576783]
[1743013547140,1.25770519,620.21,619.57,1.20576783]
[1743013547336,1.25770519,620.2,619.57,1.48643223]
[1743013547536,2.23498816,620.19,619.57,1.48643223]
[1743013547735,1.25770519,620.18,619.57,1.48643223]
[1743013547936,1.25770519,620.17,619.57,1.48643223]
[1743013548137,1.25770519,620.16,619.57,1.48643223]
[1743013548336,1.25770519,620.15,619.57,1.48643223]
[1743013548639,1.25770519,620.14,619.57,1.48643223]
[1743013548943,2.23498816,620.13,619.57,0.2806644]
[1743013549137,1.25770519,620.12,619.57,0.2806644]
[1743013549335,1.25770519,620.11,619.57,0.2806644]
[1743013549537,1.25770519,620.1,619.57,0.2806644]
[1743013549737,0.97728297,620.11,619.57,0.2806644]
[1743013550040,0.97728297,620.09,619.57,0.2806644]
[1743013550241,0.97728297,620.08,619.57,0.2806644]
[1743013550438,0.97728297,620.07,619.57,0.2806644]
[1743013551231,0.97728297,620.06,619.57,0.2806644]
[1743013551634,0.97728297,620.05,619.57,0.2806644]
[1743013552038,0.97728297,620.05,619.56,1.20576783]
[1743013552240,0.97728297,620.04,619.56,1.20576783]
[1743013552938,1.277,620.22,619.56,1.20576783]
[1743013553139,2.2347845,620.21,619.56,1.20576783]
[1743013553334,1.25761538,620.2,619.56,1.20576783]
[1743013553538,1.25761538,620.19,619.56,1.20576783]
[1743013553738,1.25761538,620.18,619.54,0.28067911]
[1743013554039,1.25761538,620.17,619.54,0.28067911]
[1743013554240,1.25761538,620.16,619.54,0.28067911]
[1743013554440,1.25761538,620.15,619.54,0.28067911]
[1743013554640,1.25761538,620.14,619.54,0.28067911]
[1743013554940,1.25761538,620.13,619.54,0.28067911]
[1743013555140,0.97716912,620.14,619.53,1.20576783]
[1743013555537,0.934,620.25,619.53,1.20576783]
[1743013555734,1.25780902,620.24,619.54,0.28066327]
[1743013555940,1.25780902,620.23,619.54,0.28066327]
[1743013556241,1.25780902,620.22,619.61,1.20576783]
[1743013556436,1.25780902,620.21,619.61,1.20576783]
[1743013556636,1.25780902,620.2,619.61,1.20576783]
[1743013556943,1.25780902,620.19,619.61,1.20576783]
[1743013557240,0.97748846,620.19,619.61,1.20576783]
[1743013557440,0.97748846,620.18,619.61,1.20576783]
[1743013557940,0.97748846,620.18,619.62,1.20576783]
[1743013558137,0.97748846,620.17,619.62,1.20576783]
[1743013558741,0.97748846,620.16,619.62,1.20576783]
[1743013559233,0.97748846,620.15,619.62,1.20576783]
[1743013559936,0.97748846,620.14,619.62,1.20576783]
[1743013560138,0.97748846,620.14,619.62,1.19124191]
[1743013560339,0.97748846,620.14,619.63,1.19124191]
[1743013560740,0.97748846,620.13,619.63,1.19124191]
[1743013561441,1.315,620.2,619.63,1.19124191]
[1743013561744,0.9775453,620.19,619.63,1.19124191]
[1743013561943,1.25806998,620.18,619.63,1.19124191]
[1743013562138,0.9775453,620.18,619.63,1.19124191]
[1743013562743,0.9775453,620.17,619.63,1.19124191]
[1743013562945,0.9775453,620.17,619.54,1.19960031]
[1743013563141,1.25775773,620.16,619.54,1.19960031]
[1743013563344,1.25775773,620.15,619.54,1.19960031]
[1743013563546,2.23530303,620.14,619.54,1.19960031]
[1743013563747,1.25766175,620.13,619.54,1.19960031]
[1743013564045,0.9775453,620.14,619.54,1.19960031]
[1743013564247,2.23513234,620.13,619.54,1.19960031]
[1743013564441,0.9775453,620.13,619.54,1.19960031]
[1743013564641,0.9775453,620.12,619.54,1.19960031]
[1743013564941,0.9775453,620.11,619.54,1.19960031]
[1743013565549,1.315,620.2,619.54,1.19960031]
[1743013565749,0.9770331,620.1,619.54,1.19960031]
[1743013565950,0.9770331,620.09,619.64,1.19960031]
[1743013566350,1.315,620.2,619.64,1.19960031]
[1743013566550,1.109,620.08,619.64,1.19960031]
[1743013567652,1.109,620.08,619.71,1.19960031]
[1743013569548,1.109,620.08,619.76,1.19960031]
[1743013571855,1.109,620.08,619.77,1.19960031]
[1743013574650,1.109,620.08,619.76,1.19960031]
[1743013577459,1.109,620.08,619.67,1.19960031]
[1743013579859,1.109,620.08,619.68,1.19960031]
[1743013581458,2.19,620.08,619.68,1.19960031]
[1743013582055,2.19,620.08,619.66,1.19960031]
[1743013584666,2.19,620.08,619.64,1.19960031]
[1743013586563,2.19,620.08,619.7,1.19960031]
[1743013588568,2.19,620.08,619.81,1.19960031]
[1743013590469,2.19,620.08,619.79,1.19960031]
[1743013594172,2.19,620.08,619.8,1.19960031]
[1743013596777,2.19,620.08,619.73,1.19960031]
[1743013598581,2.19,620.08,619.7,1.19960031]
[1743013600580,2.19,620.08,619.61,1.19960031]
[1743013600581,2.19,620.08,619.71,1.19960031]
[1743013602175,2.19,620.08,619.64,1.22378993]
[1743013602176,2.19,620.08,619.67,1.19960031]
[1743013602879,3.677,620.08,619.67,1.19960031]
[1743013604883,3.677,620.08,619.71,1.19960031]
[1743013606585,3.677,620.08,619.74,1.19960031]
[1743013608081,3.677,620.08,619.76,1.19960031]
[1743013610885,3.677,620.08,619.7,1.19960031]
[1743013615793,3.677,620.08,619.61,0.28064403]
[1743013618187,3.677,620.08,619.44,1.19960031]
[1743013618690,3.677,620.08,619.5,1.19960031]
[1743013619390,3.677,620.08,619.51,0.28066666]
[1743013621091,3.677,620.08,619.51,1.19960031]
[1743013621787,3.677,620.08,619.51,1.48026584]
[1743013623291,3.677,620.08,619.51,0.28066553]
[1743013623493,3.677,620.08,619.52,0.32283057]
[1743013630494,3.677,620.08,619.52,1.52243088]
[1743013633093,3.677,620.08,619.6,1.19960031]
[1743013635999,3.677,620.08,619.77,1.19960031]
[1743013638401,3.677,620.08,619.79,1.19960031]
[1743013640302,3.677,620.08,619.66,1.19960031]
[1743013640701,3.677,620.08,619.67,0.32275243]
[1743013642702,3.677,620.08,619.68,1.19960031]
[1743013642899,3.677,620.08,619.69,0.32274201]
[1743013645000,3.677,620.08,619.71,1.19960031]
[1743013647608,3.677,620.08,619.7,1.19960031]
[1743013649811,3.677,620.08,619.84,1.19960031]
[1743013652009,3.677,620.08,619.8,1.19960031]
[1743013653511,3.677,620.08,619.83,1.19960031]
[1743013655510,3.677,620.08,619.92,1.19960031]
[1743013655910,0.28059425,620.65,619.92,1.19960031]
[1743013656209,2.22664456,620.64,619.92,1.19960031]
[1743013656410,1.25307523,620.63,619.92,1.19960031]
[1743013656611,1.25307523,620.62,619.92,1.19960031]
[1743013656812,2.22664456,620.61,619.92,1.19960031]
[1743013657011,1.25307523,620.6,619.92,1.19960031]
[1743013657216,1.25307523,620.59,619.92,1.19960031]
[1743013657411,2.22664456,620.58,619.92,1.19960031]
[1743013657607,1.25307523,620.57,619.92,1.19960031]
[1743013657809,2.22664456,620.56,619.92,1.19960031]
[1743013658010,1.25307523,620.55,619.92,1.19960031]
[1743013658206,1.25307523,620.54,619.92,1.19960031]
[1743013658412,1.25307523,620.53,619.95,1.19960031]
[1743013658712,2.22664456,620.52,619.95,1.19960031]
[1743013659017,1.25307523,620.51,619.95,1.19960031]
[1743013659207,2.22664456,620.5,619.95,1.19960031]
[1743013659412,0.97356933,620.49,619.95,1.19960031]
[1743013659911,0.97356933,620.48,619.95,1.19960031]
[1743013660414,0.97356933,620.47,619.95,1.19960031]
[1743013660714,0.97356933,620.46,619.95,1.19960031]
[1743013661113,0.97356933,620.46,619.94,1.19960031]
[1743013661414,0.97356933,620.45,619.94,1.19960031]
[1743013661811,0.97356933,620.44,619.94,1.19960031]
[1743013662514,0.97356933,620.43,619.94,1.19960031]
[1743013662716,1.25350518,620.5,619.94,1.19960031]
[1743013662915,1.25350518,620.49,619.94,1.19960031]
[1743013663115,1.039,620.51,619.94,1.19960031]
[1743013663116,2.22755585,620.48,619.94,1.19960031]
[1743013663316,1.25350518,620.47,619.94,1.19960031]
[1743013663517,1.25350518,620.46,619.83,1.19960031]
[1743013663814,2.22755585,620.45,619.83,1.19960031]
[1743013664013,0.97405067,620.45,619.83,1.19960031]
[1743013664210,0.97405067,620.44,619.83,1.19960031]
[1743013664810,0.97405067,620.43,619.83,1.19960031]
[1743013665414,0.97405067,620.42,619.83,1.19960031]
[1743013665613,1.039,620.51,619.83,1.19960031]
[1743013665813,1.25458831,620.5,619.83,1.19960031]
[1743013666010,1.25458831,620.49,619.82,1.19960031]
[1743013666215,1.25458831,620.48,619.82,1.19960031]
[1743013666415,1.25458831,620.47,619.82,1.19960031]
[1743013666611,1.25458831,620.46,619.82,1.19960031]
[1743013666818,1.25458831,620.45,619.82,1.19960031]
[1743013667017,0.97459094,620.44,619.82,1.19960031]
[1743013667613,2.22912135,620.43,619.82,1.19960031]
[1743013667816,1.25447486,620.42,619.82,1.19960031]
[1743013668015,2.22912135,620.41,619.82,1.19960031]
[1743013668213,1.25460284,620.4,619.9,1.19960031]
[1743013668416,0.97464649,620.41,619.9,1.19960031]
[1743013668613,0.97464649,620.39,619.9,1.19960031]
[1743013669011,0.97464649,620.38,619.9,1.19960031]
[1743013669518,0.97464649,620.37,619.9,1.19960031]
[1743013669917,0.97464649,620.36,619.9,1.19960031]
[1743013670121,0.97464649,620.36,619.91,1.19960031]
[1743013670820,1.039,620.51,619.91,1.19960031]
[1743013671022,1.25494043,620.5,619.91,1.19960031]
[1743013671215,1.25494043,620.49,619.91,1.19960031]
[1743013671521,1.25494043,620.48,619.91,1.19960031]
[1743013671820,2.22994817,620.47,619.91,1.19960031]
[1743013672020,1.25496117,620.46,619.91,1.19960031]
[1743013672229,2.22996891,620.45,619.81,1.19960031]
[1743013672524,1.25496117,620.44,619.81,1.19960031]
[1743013672720,2.22996891,620.43,619.81,1.19960031]
[1743013672923,1.25496117,620.42,619.81,1.19960031]
[1743013673221,1.25496117,620.41,619.81,1.19960031]
[1743013673420,1.25496117,620.4,619.81,1.19960031]
[1743013673721,2.22996891,620.39,619.81,1.19960031]
[1743013673922,1.25496117,620.38,619.81,1.19960031]
[1743013674122,1.039,620.51,619.81,1.19960031]
[1743013674123,2.22996891,620.37,619.81,1.19960031]
[1743013674322,1.25496117,620.36,619.81,1.19960031]
[1743013674522,2.22996891,620.35,619.81,1.19960031]
[1743013674723,1.25496117,620.34,619.82,1.19960031]
[1743013674922,1.25496117,620.33,619.82,1.19960031]
[1743013675223,0.97500774,620.32,619.82,1.19960031]
[1743013676519,0.97500774,620.31,619.82,1.19960031]
[1743013676719,0.97500774,620.3,619.82,1.19960031]
[1743013676923,0.97500774,620.29,619.76,1.19960031]
[1743013677221,0.97500774,620.28,619.76,1.19960031]
[1743013677917,1.206,620.32,619.76,1.19960031]
[1743013678118,1.25598244,620.31,619.76,1.19960031]
[1743013678321,1.206,620.32,619.76,1.19960031]
[1743013678522,2.23239015,620.31,619.76,1.19960031]
[1743013678722,0.97608189,620.31,619.76,1.19960031]
[1743013678919,0.97608189,620.3,619.76,1.19960031]
[1743013679317,0.97608189,620.29,619.76,1.19960031]
[1743013679726,0.97608189,620.28,619.81,1.19960031]
[1743013680043,0.97608189,620.27,619.81,1.19960031]
[1743013680228,1.206,620.32,619.81,1.19960031]
[1743013680423,2.2330272,620.31,619.81,1.19960031]
[1743013680722,1.25665787,620.3,619.81,1.19960031]
[1743013680922,0.97636401,620.3,619.81,1.19960031]
[1743013681623,0.97636401,620.29,619.81,1.19960031]
[1743013681823,0.97636401,620.29,619.73,0.94031564]
[1743013681824,0.97636401,620.29,620.08,1.207508]
[1743013682022,0.97636401,620.28,620.08,1.207508]
[1743013682523,0.97636401,620.27,620.08,1.207508]
[1743013682925,0.97636401,620.26,620.08,1.207508]
[1743013683424,1.206,620.32,620.08,1.207508]
[1743013683819,1.206,620.32,620.04,1.207508]
[1743013687925,1.206,620.32,620.03,1.207508]
[1743013689230,2.532,620.32,620.03,1.207508]
[1743013690427,0.97700187,620.31,620.01,1.207508]
[1743013690930,2.23445246,620.3,620.01,1.207508]
[1743013691126,1.25745059,620.29,620.01,1.207508]
[1743013691332,2.23445246,620.28,620.01,1.207508]
[1743013691630,2.23443111,620.27,620.01,1.207508]
[1743013691831,0.97700187,620.27,620.01,1.207508]
[1743013692234,0.97700187,620.27,619.99,1.207508]
[1743013692430,0.97700187,620.26,619.99,1.207508]
[1743013692831,1.326,620.32,619.99,1.207508]
[1743013693032,1.25744962,620.31,619.99,1.207508]
[1743013693335,1.25744962,620.3,619.99,1.207508]
[1743013693527,1.25744962,620.29,619.99,1.207508]
[1743013693733,0.97705063,620.29,619.99,1.207508]
[1743013694127,0.97705063,620.28,619.99,1.207508]
[1743013694326,1.94205063,620.28,619.99,1.207508]
[1743013694633,0.97705063,620.27,620.02,1.207508]
[1743013695433,0.965,620.28,620.02,1.207508]
[1743013695434,0.97705063,620.26,620.02,1.207508]
[1743013696032,0.965,620.28,620.02,1.207508]
[1743013696630,0.97693929,620.27,620.02,1.207508]
[1743013696827,0.97693929,620.27,619.99,1.207508]
[1743013697034,0.97693929,620.26,619.99,1.207508]
[1743013697536,0.965,620.28,619.99,1.207508]
[1743013697936,0.97690118,620.27,619.99,1.207508]
[1743013698435,0.965,620.28,619.99,1.207508]
[1743013699238,0.965,620.28,620.0,1.207508]
[1743013701641,0.965,620.28,619.97,1.207508]
[1743013705345,0.965,620.28,620.0,1.207508]
[1743013706146,0.9771737,620.27,620.0,1.207508]
[1743013707043,0.9771737,620.26,620.0,1.207508]
[1743013707248,0.965,620.28,620.0,1.207508]
[1743013707446,0.965,620.28,620.07,1.207508]
[1743013708044,0.97727794,620.27,620.07,1.207508]
[1743013708350,0.97727794,620.26,620.07,1.207508]
[1743013709051,0.965,620.28,620.07,1.207508]
[1743013709052,0.97727794,620.25,620.07,1.207508]
[1743013709247,0.965,620.28,620.07,1.207508]
[1743013709451,0.965,620.28,620.08,1.207508]
[1743013709750,0.97747301,620.27,620.08,1.207508]
[1743013710452,0.97747301,620.26,620.08,1.207508]
[1743013711053,0.965,620.28,620.08,1.207508]
[1743013711957,0.965,620.28,620.09,1.207508]
[1743013712555,0.97754338,620.27,620.09,1.207508]
[1743013713255,0.965,620.28,620.09,1.207508]
[1743013716053,0.965,620.28,620.07,1.207508]
[1743013717354,1.24341992,620.61,620.07,1.207508]
[1743013717558,2.50171608,620.6,620.07,1.207508]
[1743013717756,1.44776538,620.74,620.07,1.207508]
[1743013717757,2.50171608,620.59,620.07,1.207508]
[1743013717952,0.96427949,620.74,620.07,1.207508]
[1743013717953,2.50171608,620.58,620.07,1.207508]
[1743013718157,2.50171608,620.57,620.07,1.207508]
[1743013718354,1.25829616,620.56,620.07,1.207508]
[1743013718558,2.23589213,620.55,620.07,1.207508]
[1743013718857,1.25829616,620.54,620.07,1.207508]
[1743013719054,2.23589213,620.53,620.07,1.207508]
[1743013719252,1.25829616,620.52,620.07,1.207508]
[1743013719458,1.25829616,620.51,620.07,1.207508]
[1743013719659,1.25829616,620.5,620.07,1.207508]
[1743013719855,1.25829616,620.49,620.07,1.207508]
[1743013720056,2.23589213,620.48,620.07,1.207508]
[1743013720262,2.26859597,620.48,620.07,1.207508]
[1743013720457,2.2252965,620.47,620.07,1.207508]
[1743013720657,1.2582965,620.46,620.07,1.207508]
[1743013720962,2.23589247,620.45,620.07,1.207508]
[1743013721162,1.2582965,620.44,620.07,1.207508]
[1743013721364,2.23589247,620.43,620.05,1.207508]
[1743013721563,1.2582965,620.42,620.05,1.207508]
[1743013721758,1.2582965,620.41,620.05,1.207508]
[1743013721964,2.23589247,620.4,620.05,1.207508]
[1743013722156,1.25827913,620.39,620.05,1.207508]
[1743013722356,1.25827913,620.38,620.05,1.207508]
[1743013722565,1.25827913,620.37,620.05,1.207508]
[1743013722763,1.25827913,620.36,620.05,1.207508]
[1743013722964,1.25827913,620.35,620.05,1.207508]
[1743013723164,1.25827913,620.34,620.05,1.207508]
[1743013723464,1.25827913,620.33,620.05,1.207508]
[1743013723666,1.25827913,620.32,620.08,1.207508]
[1743013723859,1.25827913,620.31,620.08,1.207508]
[1743013724062,1.25826723,620.3,620.08,1.207508]
[1743013724265,0.97759597,620.3,620.08,1.207508]
[1743013724965,0.97759597,620.29,620.08,1.207508]
[1743013725361,0.97759597,620.28,620.08,1.207508]
[1743013725567,0.97759597,620.28,620.06,1.207508]
[1743013726466,0.967,620.47,620.06,1.207508]
[1743013726662,1.25831759,620.46,620.06,1.207508]
[1743013726966,1.25831759,620.45,620.09,1.207508]
[1743013727167,1.25831759,620.44,620.09,1.207508]
[1743013727365,1.25831759,620.43,620.09,1.207508]
[1743013727565,1.25831759,620.42,620.09,1.207508]
[1743013727861,2.23596061,620.41,620.09,1.207508]
[1743013728066,1.2583237,620.4,620.09,1.207508]
[1743013728266,1.2583237,620.39,620.09,1.207508]
[1743013728567,1.2583237,620.38,620.09,1.207508]
[1743013728759,1.2583237,620.37,620.09,1.207508]
[1743013728966,1.2583237,620.36,620.1,1.207508]
[1743013729162,1.2583237,620.35,620.1,1.207508]
[1743013729466,1.2583237,620.34,620.1,1.207508]
[1743013729663,1.2583237,620.33,620.1,1.207508]
[1743013729861,1.2583237,620.32,620.1,1.207508]
[1743013730067,1.2583237,620.31,620.1,1.207508]
[1743013730268,0.97763691,620.31,620.1,1.207508]
[1743013730867,0.97763691,620.3,620.1,1.207508]
[1743013731069,0.97763691,620.3,620.07,1.207508]
[1743013731471,0.97763691,620.29,620.07,1.207508]
[1743013732172,0.97763691,620.28,620.07,1.207508]
[1743013732673,0.967,620.47,620.07,1.207508]
[1743013732872,1.25858364,620.46,620.07,1.207508]
[1743013733075,1.25858364,620.45,620.07,1.207508]
[1743013733267,0.967,620.47,620.07,1.207508]
[1743013733268,2.23642881,620.44,620.07,1.207508]
[1743013733468,1.25858364,620.43,620.06,1.207508]
[1743013733672,1.25858364,620.42,620.06,1.207508]
[1743013733973,2.23642881,620.41,620.06,1.207508]
[1743013734171,1.25858364,620.4,620.06,1.207508]
[1743013734371,2.23642881,620.39,620.06,1.207508]
[1743013734677,2.23642881,620.38,620.06,1.207508]
[1743013734874,1.25858364,620.37,620.06,1.207508]
[1743013735072,1.25858364,620.36,620.06,1.207508]
[1743013735270,1.25858364,620.35,620.06,1.207508]
[1743013735475,1.25858364,620.34,620.06,1.207508]
[1743013735675,1.25858364,620.33,620.06,1.207508]
[1743013735869,0.97784517,620.34,620.06,1.207508]
[1743013736269,0.967,620.47,620.06,1.207508]
[1743013736270,0.97784517,620.32,620.06,1.207508]
[1743013736771,0.97784517,620.31,620.06,1.207508]
[1743013737169,0.97784517,620.3,620.06,1.207508]
[1743013737376,0.97784517,620.3,620.08,1.207508]
[1743013737977,0.97784517,620.29,620.08,1.207508]
[1743013738576,0.967,620.47,620.08,1.207508]
[1743013738779,1.2586172,620.46,620.08,1.207508]
[1743013738973,1.2586172,620.45,620.08,1.207508]
[1743013739174,1.2586147,620.44,620.08,1.207508]
[1743013739479,1.2586147,620.43,620.07,1.207508]
[1743013739679,1.2586147,620.42,620.07,1.207508]
[1743013739880,1.2586147,620.41,620.07,1.207508]
[1743013740079,1.2586147,620.4,620.07,1.207508]
[1743013740380,1.2586147,620.39,620.07,1.207508]
[1743013740679,2.23648135,620.38,620.07,1.207508]
[1743013740979,1.2586147,620.37,620.07,1.207508]
[1743013741279,2.23648135,620.36,620.07,1.207508]